fUSD/lending_fUSD_20250630
["ID","MTS","AMOUNT","RATE_DAILY","PERIOD"]
[368687929,1751297446898,-1911.54,0.00013986,2]
[368687930,1751297446907,-490.0,0.00013986,2]
[368687931,1751297446924,-490.0,0.00013986,2]
[368687932,1751297446934,-490.0,0.00013986,2]
[368687933,1751297446943,-490.0,0.00013986,2]
[368687934,1751297446952,-1373.77,0.00013986,2]
[368687935,1751297446962,-5844.14,0.00013986,2]
[368687936,1751297446971,-1095.84,0.00013986,2]
[368687937,1751297446981,-490.0,0.00013986,2]
[368687938,1751297446991,-490.0,0.00013986,2]
[368687939,1751297447000,-1865.08,0.00013986,2]
[368687940,1751297447009,-1298.37,0.00013986,2]
[368687941,1751297447018,-490.0,0.00013986,2]
[368687942,1751297447028,-13570.15,0.00013986,2]
[368687943,1751297447038,-490.0,0.00013986,2]
[368687944,1751297447047,-1586.42,0.00013986,2]
[368687945,1751297447057,-490.0,0.00013986,2]
[368687946,1751297447066,-490.0,0.00013986,2]
[368687947,1751297447076,-490.0,0.00013986,2]
[368687948,1751297447086,-1150.34,0.00013986,2]
[368687949,1751297447095,-1599.74593248,0.00013986,2]
[368687950,1751297447111,-2454.65406752,0.00013986,2]
[368687951,1751297447121,-490.0,0.00013986,2]
[368687952,1751297447130,-495.61,0.00013986,2]
[368687953,1751297447139,-490.0,0.00013986,2]
[368687954,1751297447148,-1559.76,0.00013986,2]
[368687955,1751297447157,-1214.31,0.00013986,2]
[368687956,1751297447173,-549.69,0.00013986,2]
[368687957,1751297447182,-1037.97,0.00013986,2]
[368687958,1751297447191,-2349.16,0.00013986,2]
[368687959,1751297447200,-500.0,0.00013986,2]
[368687960,1751297447210,-2689.51,0.00013986,2]
[368687961,1751297447220,-490.0,0.00013986,2]
[368687962,1751297447232,-1038.3,0.00013986,2]
[368687963,1751297447242,-6325.83,0.00013986,2]
[368687964,1751297447252,-459.44925277,0.00013986,2]
[368687965,1751297447262,-6471.15,0.00013986,2]
[368687966,1751297447272,-490.0,0.00013986,2]
[368687967,1751297447282,-490.0,0.00013986,2]
[368687968,1751297447291,-490.0,0.00013986,2]
[368687969,1751297447303,-490.0,0.00013986,2]
[368687970,1751297447314,-861.7,0.00013986,2]
[368687971,1751297447324,-2529.6,0.00013986,2]
[368687972,1751297447333,-8390.48,0.00013986,2]
[368687973,1751297447342,-490.0,0.00013986,2]
[368687974,1751297447352,-2705.90625621,0.00013986,2]
[368687975,1751297447366,-6960.96374379,0.00013986,2]
[368687976,1751297447376,-490.0,0.00013986,2]
[368687977,1751297447386,-1000.34,0.00013986,2]
[368687978,1751297447395,-490.0,0.00013986,2]
[368687979,1751297447405,-490.0,0.00013986,2]
[368687980,1751297447419,-577.39,0.00013986,2]
[368687981,1751297447428,-566.34,0.00013986,2]
[368687982,1751297447438,-2227.27,0.00013986,2]
[368687983,1751297447447,-4193.0,0.00013986,2]
[368687984,1751297447457,-2048.25,0.00013986,2]
[368687985,1751297447466,-490.0,0.00013986,2]
[368687986,1751297447475,-6982.64,0.00013986,2]
[368687987,1751297447485,-3327.86,0.00013986,2]
[368687988,1751297447495,-490.0,0.00013986,2]
[368687989,1751297447504,-490.0,0.00013986,2]
[368687990,1751297447514,-490.0,0.00013986,2]
[368687991,1751297447523,-490.0,0.00013986,2]
[368687992,1751297447532,-490.0,0.00013986,2]
[368687993,1751297447542,-490.0,0.00013986,2]
[368687994,1751297447551,-1336.52,0.00013986,2]
[368687995,1751297447561,-490.0,0.00013986,2]
[368687996,1751297447571,-490.0,0.00013986,2]
[368687997,1751297447580,-490.0,0.00013986,2]
[368687998,1751297447589,-490.0,0.00013986,2]
[368687999,1751297447598,-23056.5,0.00013986,2]
[368688000,1751297447608,-490.0,0.00013986,2]
[368688001,1751297447617,-673.05,0.00013986,2]
[368688002,1751297447626,-490.0,0.00013986,2]
[368688003,1751297447635,-490.0,0.00013986,2]
[368688004,1751297447644,-561.36,0.00013986,2]
[368688005,1751297447654,-2251.62,0.00013986,2]
[368688006,1751297447667,-1450.71,0.00013986,2]
[368688007,1751297447676,-2088.13,0.00013986,2]
[368688008,1751297447685,-502.38,0.00013986,2]
[368688009,1751297447694,-616.17,0.00013986,2]
[368688010,1751297447703,-490.0,0.00013986,2]
[368688011,1751297447712,-2289.71,0.00013986,2]
[368688012,1751297447723,-850.87,0.00013986,2]
[368688013,1751297447732,-544.8,0.00013986,2]
[368688014,1751297447742,-3243.38,0.00013986,2]
[368688015,1751297447751,-4379.97,0.00013986,2]
[368688016,1751297447761,-490.0,0.00013986,2]
[368688017,1751297447770,-490.0,0.00013986,2]
[368688018,1751297447779,-490.0,0.00013986,2]
[368688019,1751297447789,-3208.97,0.00013986,2]
[368688020,1751297447798,-2226.85,0.00013986,2]
[368688021,1751297447807,-529.3,0.00013986,2]
[368688022,1751297447818,-5208.71,0.00013986,2]
[368688023,1751297447827,-490.0,0.00013986,2]
[368688024,1751297447836,-490.0,0.00013986,2]
[368688025,1751297447845,-500.0,0.00013986,2]
[368688026,1751297447855,-631.14,0.00013986,2]
[368688027,1751297447864,-547.62,0.00013986,2]
[368688028,1751297447873,-2740.82,0.00013986,2]
[368688029,1751297447882,-299.71951397,0.00013986,2]
[368688030,1751297447891,-1768.81,0.00013986,2]
[368688031,1751297447901,-1771.89,0.00013986,2]
[368688032,1751297447915,-716.78,0.00013986,2]
[368688033,1751297447924,-3200.76,0.00013986,2]
[368688034,1751297447933,-490.0,0.00013986,2]
[368688035,1751297447943,-490.0,0.00013986,2]
[368688036,1751297447952,-490.0,0.00013986,2]
[368688037,1751297447962,-2733.06370943,0.00013986,2]
[368688038,1751297448036,-2479.03259997,0.00013986,2]
[368688039,1751297450649,-262.98292765,0.00013986,2]
[368688040,1751297454107,-311.18678581,0.00013977,2]
[368688041,1751297454148,-52.58334951,0.00013977,2]
[368688042,1751297454158,-427.59356085,0.00013978,2]
[368688043,1751297454181,-349.45765685,0.00013978,2]
[368688044,1751297454191,-720.99,0.00013978,2]
[368688045,1751297454200,-3544.52,0.00013981,2]
[368688046,1751297454210,-490.0,0.00013981,2]
[368688047,1751297454221,-412.3727652,0.00013981,2]
[368688048,1751297456516,-301.11839854,0.00013978,2]
[368688050,1751297510895,1000.0,0.00013057,2]
[368688051,1751297552331,817.0,0.00012542,2]
[368688052,1751297609276,202.0,0.00012542,2]
[368688053,1751297645728,1000.0,0.00013715,4]
[368688054,1751297676118,227.43,0.00012897,2]
[368688056,1751297777009,1778.72,0.00012901,2]
[368688057,1751297808387,455.83,0.00012901,2]
[368688058,1751297845579,200.999999,0.00027397,120]
[368688060,1751298023782,23900.0,0.00012897,2]
[368688061,1751298030533,167.01,0.00012873,2]
[368688062,1751298062773,900.0,0.000133,4]
[368688063,1751298064490,1900.0,0.000134,4]
[368688064,1751298066559,2900.0,0.000135,4]
[368688065,1751298068703,136.91384404,0.000136,4]
[368688066,1751298068728,3763.08615596,0.000136,4]
[368688067,1751298070800,4236.91384404,0.000137,5]
[368688068,1751298070821,563.08615596,0.000137,5]
[368688069,1751298072905,900.0,0.000138,5]
[368688070,1751298075017,900.0,0.000139,5]
[368688071,1751298100854,13430.36,0.00012857,2]
[368688072,1751298113061,258.19,0.00012853,2]
[368688074,1751298165166,953.59,0.00012854,2]
[368688075,1751298233723,2038.31,0.00012868,2]
[368688076,1751298266311,250.0,0.00012866,2]
[368688077,1751298280210,173.25,0.00012866,2]
[368688078,1751298280462,173.25,0.00012882,2]
[368688079,1751298280685,173.25,0.00012898,2]
[368688080,1751298280891,173.25,0.00012914,2]
[368688081,1751298281096,173.25,0.0001293,2]
[368688082,1751298320241,200.2275498,0.00012865,2]
[368688083,1751298343247,163.24,0.00010311,2]
[368688084,1751298358725,523.0,0.00012508,2]
[368688085,1751298383691,193.93,0.00012892,2]
[368688086,1751298438501,604.1,0.0001288,2]
[368688087,1751298534721,490.0,0.00027397,120]
[368688088,1751298552290,200.0,0.00012866,7]
[368688091,1751298608798,273.46,0.00012868,2]
[368688092,1751298622277,332.42489,0.00018001,29]
[368688093,1751298622681,332.42489,0.00018001,29]
[368688094,1751298625780,332.42489,0.00018001,29]
[368688095,1751298626044,332.42489,0.00018001,29]
[368688096,1751298626262,332.42493,0.00018001,29]
[368688112,1751298632893,-157.88,0.00013353,2]
[368688113,1751298632940,-179.86,0.00013421,2]
[368688114,1751298632971,-946.52208782,0.00013544,2]
[368688115,1751298632981,-505.0,0.00013644,2]
[368688116,1751298632991,-500.0,0.00013644,2]
[368688117,1751298633001,-315.08017465,0.0001369,2]
[368688118,1751298633011,-513.65,0.00013699,2]
[368688119,1751298633021,-302.91,0.00013699,2]
[368688120,1751298633031,-158.90219,0.00013709,2]
[368688121,1751298633041,-315.08017463,0.00013739,2]
[368688122,1751298633051,-500.0,0.00013753,2]
[368688123,1751298633062,-315.08017463,0.00013788,2]
[368688124,1751298633072,-207.4,0.00013789,2]
[368688125,1751298633082,-311.1,0.0001379,2]
[368688126,1751298633092,-178.42522448,0.0001379,2]
[368688127,1751298633101,-200.0,0.0001379,2]
[368688128,1751298633111,-1200.0,0.00013795,2]
[368688129,1751298633121,-300.0,0.00013796,2]
[368688130,1751298633130,-249.6162,0.00013797,2]
[368688131,1751298633140,-1488.0477,0.00013797,2]
[368688132,1751298633149,-1091.0,0.00013797,2]
[368688133,1751298633163,-1219.08105079,0.00013797,2]
[368688134,1751298633173,-170.0,0.00013848,2]
[368688135,1751298633183,-150.0,0.00013849,2]
[368688136,1751298633193,-200.12634,0.0001385,2]
[368688137,1751298633204,-150.0,0.00013861,2]
[368688138,1751298633214,-1868.16928958,0.00013862,2]
[368688139,1751298633224,-150.0,0.00013867,2]
[368688140,1751298633234,-591.7227,0.00013871,2]
[368688141,1751298633243,-597.97219404,0.00013872,2]
[368688142,1751298633253,-256.8372042,0.00013872,2]
[368688143,1751298633263,-150.0,0.00013873,2]
[368688144,1751298633272,-160.52605489,0.00013877,2]
[368688145,1751298633282,-444.02056311,0.00013878,2]
[368688146,1751298633292,-1000.0,0.00013878,2]
[368688147,1751298633302,-206.0,0.00013879,2]
[368688148,1751298633312,-237.62216632,0.00013879,2]
[368688149,1751298633322,-205.87998725,0.00013879,2]
[368688150,1751298633331,-150.0,0.0001388,2]
[368688151,1751298633341,-5000.0,0.0001388,2]
[368688152,1751298633351,-444.02056308,0.0001388,2]
[368688153,1751298633361,-457.0,0.00013882,2]
[368688154,1751298633370,-444.02056308,0.00013883,2]
[368688155,1751298633380,-174.72087728,0.00013884,2]
[368688156,1751298633389,-2428.1765,0.00013884,2]
[368688157,1751298633399,-2255.97726446,0.00013884,2]
[368688158,1751298633413,-290.81202449,0.00013885,2]
[368688159,1751298633423,-444.02056308,0.00013885,2]
[368688160,1751298633432,-712.0,0.00013886,2]
[368688161,1751298633442,-1005.57787813,0.00013887,2]
[368688162,1751298633452,-296.73197465,0.00013887,2]
[368688163,1751298633462,-12469.69346202,0.00013887,2]
[368688164,1751298633472,-444.02056308,0.00013888,2]
[368688165,1751298633481,-2134.06,0.00013888,2]
[368688166,1751298633491,-2626.62,0.00013888,2]
[368688167,1751298633502,-1698.06,0.00013888,2]
[368688168,1751298633512,-3067.39,0.00013888,2]
[368688169,1751298633522,-2971.21,0.00013888,2]
[368688170,1751298633532,-2062.95,0.00013888,2]
[368688171,1751298633541,-1593.09,0.00013888,2]
[368688172,1751298633551,-491.63,0.00013888,2]
[368688173,1751298633561,-1282.78,0.00013888,2]
[368688174,1751298633571,-2138.91,0.00013888,2]
[368688175,1751298633585,-657.82,0.00013888,2]
[368688176,1751298633595,-490.0,0.00013888,2]
[368688177,1751298633606,-595.33,0.00013888,2]
[368688178,1751298633616,-970.05,0.00013888,2]
[368688179,1751298633626,-1204.3,0.00013888,2]
[368688180,1751298633636,-2817.26,0.00013888,2]
[368688181,1751298633646,-2338.03,0.00013888,2]
[368688182,1751298633662,-2987.44,0.00013888,2]
[368688183,1751298633673,-490.0,0.00013888,2]
[368688184,1751298633683,-1386.44,0.00013888,2]
[368688185,1751298633693,-733.11,0.00013888,2]
[368688186,1751298633704,-490.0,0.00013888,2]
[368688187,1751298633714,-1998.79,0.00013888,2]
[368688188,1751298633724,-2406.73,0.00013888,2]
[368688189,1751298633736,-2102.64,0.00013888,2]
[368688190,1751298633747,-500.0,0.00013888,2]
[368688191,1751298633757,-643.71,0.00013888,2]
[368688192,1751298633768,-490.0,0.00013888,2]
[368688193,1751298633777,-703.43,0.00013888,2]
[368688194,1751298633787,-490.0,0.00013888,2]
[368688195,1751298633797,-444.02056308,0.0001389,2]
[368688196,1751298633807,-444.02056308,0.00013893,2]
[368688197,1751298633816,-150.0,0.00013893,2]
[368688198,1751298633826,-150.0,0.00013894,2]
[368688199,1751298633835,-444.02056308,0.00013895,2]
[368688200,1751298633845,-490.0,0.00013897,2]
[368688201,1751298633855,-155.0,0.00013897,2]
[368688202,1751298633864,-490.0,0.00013897,2]
[368688203,1751298633874,-621.25,0.00013897,2]
[368688204,1751298633884,-551.21,0.00013897,2]
[368688205,1751298633893,-490.0,0.00013897,2]
[368688206,1751298633903,-490.0,0.00013897,2]
[368688207,1751298633917,-490.0,0.00013897,2]
[368688208,1751298633927,-498.19,0.00013897,2]
[368688209,1751298633937,-490.0,0.00013897,2]
[368688210,1751298633947,-705.24,0.00013897,2]
[368688211,1751298633957,-490.0,0.00013897,2]
[368688212,1751298633967,-490.0,0.00013897,2]
[368688213,1751298633978,-668.11,0.00013897,2]
[368688214,1751298633988,-490.0,0.00013897,2]
[368688215,1751298633998,-490.0,0.00013897,2]
[368688216,1751298634007,-490.0,0.00013897,2]
[368688217,1751298634017,-511.74,0.00013897,2]
[368688218,1751298634026,-490.0,0.00013897,2]
[368688219,1751298634036,-490.0,0.00013897,2]
[368688220,1751298634046,-500.85,0.00013897,2]
[368688221,1751298634055,-490.0,0.00013897,2]
[368688222,1751298634065,-174.95,0.00013897,2]
[368688223,1751298634075,-490.0,0.00013897,2]
[368688224,1751298634085,-645.71,0.00013897,2]
[368688225,1751298634094,-490.0,0.00013897,2]
[368688226,1751298634104,-490.0,0.00013897,2]
[368688227,1751298634113,-490.0,0.00013897,2]
[368688228,1751298634123,-868.3,0.00013897,2]
[368688229,1751298634132,-674.06,0.00013897,2]
[368688230,1751298634142,-490.0,0.00013897,2]
[368688231,1751298634151,-490.0,0.00013897,2]
[368688232,1751298634163,-556.59,0.00013897,2]
[368688233,1751298634173,-888.19,0.00013897,2]
[368688234,1751298634183,-7267.29,0.00013897,2]
[368688235,1751298634192,-581.18,0.00013897,2]
[368688236,1751298634203,-490.0,0.00013897,2]
[368688237,1751298634213,-490.0,0.00013897,2]
[368688238,1751298634223,-490.0,0.00013897,2]
[368688239,1751298634233,-827.11,0.00013897,2]
[368688240,1751298634243,-490.0,0.00013897,2]
[368688241,1751298634252,-1368.34,0.00013897,2]
[368688242,1751298634262,-490.0,0.00013897,2]
[368688243,1751298634272,-490.0,0.00013897,2]
[368688244,1751298634282,-3929.66,0.00013897,2]
[368688245,1751298634291,-490.0,0.00013897,2]
[368688246,1751298634301,-490.0,0.00013897,2]
[368688247,1751298634310,-751.58,0.00013897,2]
[368688248,1751298634320,-490.0,0.00013897,2]
[368688249,1751298634329,-490.0,0.00013897,2]
[368688250,1751298634338,-1698.11,0.00013897,2]
[368688251,1751298634348,-490.0,0.00013897,2]
[368688252,1751298634358,-490.0,0.00013897,2]
[368688253,1751298634367,-1379.87,0.00013897,2]
[368688254,1751298634377,-157.485262,0.00013897,2]
[368688255,1751298634387,-490.0,0.00013897,2]
[368688256,1751298634396,-2961.961523,0.00013897,2]
[368688257,1751298634405,-737.35,0.00013897,2]
[368688258,1751298634417,-490.0,0.00013897,2]
[368688259,1751298634427,-490.0,0.00013897,2]
[368688260,1751298634437,-154.789387,0.00013897,2]
[368688261,1751298634446,-391.517664,0.00013897,2]
[368688262,1751298634455,-1279.76,0.00013897,2]
[368688263,1751298634465,-490.0,0.00013897,2]
[368688264,1751298634475,-490.0,0.00013897,2]
[368688265,1751298634485,-490.0,0.00013897,2]
[368688266,1751298634494,-1665.32,0.00013897,2]
[368688267,1751298634504,-490.0,0.00013897,2]
[368688268,1751298634514,-930.62,0.00013897,2]
[368688269,1751298634524,-490.0,0.00013897,2]
[368688270,1751298634534,-490.0,0.00013897,2]
[368688271,1751298634543,-2979.402175,0.00013897,2]
[368688272,1751298634553,-548.91820789,0.00013897,2]
[368688273,1751298634562,-490.0,0.00013897,2]
[368688274,1751298634575,-490.0,0.00013897,2]
[368688275,1751298634585,-490.0,0.00013897,2]
[368688276,1751298634595,-490.0,0.00013897,2]
[368688277,1751298634604,-6303.51,0.00013897,2]
[368688278,1751298634614,-490.0,0.00013897,2]
[368688279,1751298634624,-558.54103081,0.00013897,2]
[368688280,1751298634635,-683.58,0.00013897,2]
[368688281,1751298634646,-3149.813896,0.00013897,2]
[368688282,1751298634655,-490.0,0.00013897,2]
[368688283,1751298634666,-490.0,0.00013897,2]
[368688284,1751298634676,-1308.83,0.00013897,2]
[368688285,1751298634685,-490.0,0.00013897,2]
[368688286,1751298634695,-490.0,0.00013897,2]
[368688287,1751298634705,-490.0,0.00013897,2]
[368688288,1751298634716,-490.0,0.00013897,2]
[368688289,1751298634725,-490.0,0.00013897,2]
[368688290,1751298634735,-490.0,0.00013897,2]
[368688291,1751298634744,-1553.17,0.00013897,2]
[368688292,1751298634754,-520.2347471,0.00013897,2]
[368688293,1751298634763,-490.0,0.00013897,2]
[368688294,1751298634773,-554.31,0.00013897,2]
[368688295,1751298634782,-858.94,0.00013897,2]
[368688296,1751298634792,-490.0,0.00013897,2]
[368688297,1751298634801,-490.0,0.00013897,2]
[368688298,1751298634811,-490.0,0.00013897,2]
[368688299,1751298634820,-490.0,0.00013897,2]
[368688300,1751298634829,-633.75,0.00013897,2]
[368688301,1751298634839,-490.0,0.00013897,2]
[368688302,1751298634848,-490.0,0.00013897,2]
[368688303,1751298634857,-490.0,0.00013897,2]
[368688304,1751298634867,-1532.03,0.00013897,2]
[368688305,1751298634877,-490.0,0.00013897,2]
[368688306,1751298634886,-314.54800482,0.00013897,2]
[368688307,1751298634896,-1783.36,0.00013897,2]
[368688308,1751298634905,-490.0,0.00013897,2]
[368688309,1751298634916,-490.0,0.00013897,2]
[368688310,1751298634926,-490.0,0.00013897,2]
[368688311,1751298634935,-490.0,0.00013897,2]
[368688312,1751298634946,-490.0,0.00013897,2]
[368688313,1751298634955,-1361.99,0.00013897,2]
[368688314,1751298634965,-1447.92782425,0.00013897,2]
[368688315,1751298634994,-190.70217575,0.00013897,2]
[368688316,1751298635004,-286.03574265,0.00013897,2]
[368688317,1751298635066,-203.96425735,0.00013897,2]
[368688318,1751298635076,-490.0,0.00013897,2]
[368688319,1751298635086,-490.0,0.00013897,2]
[368688320,1751298635095,-490.0,0.00013897,2]
[368688321,1751298635105,-490.0,0.00013897,2]
[368688322,1751298635115,-822.35,0.00013897,2]
[368688323,1751298635124,-490.0,0.00013897,2]
[368688324,1751298635134,-727.73,0.00013897,2]
[368688325,1751298635144,-490.0,0.00013897,2]
[368688326,1751298635154,-490.0,0.00013897,2]
[368688327,1751298635165,-490.0,0.00013897,2]
[368688328,1751298635175,-490.0,0.00013897,2]
[368688329,1751298635185,-532.66,0.00013897,2]
[368688330,1751298635194,-546.46,0.00013897,2]
[368688331,1751298635204,-490.0,0.00013897,2]
[368688332,1751298635213,-490.0,0.00013897,2]
[368688333,1751298635223,-8990.07,0.00013897,2]
[368688334,1751298635233,-490.0,0.00013897,2]
[368688335,1751298635242,-558.28,0.00013897,2]
[368688336,1751298635252,-490.0,0.00013897,2]
[368688337,1751298635262,-490.0,0.00013897,2]
[368688338,1751298635272,-490.0,0.00013897,2]
[368688339,1751298635282,-490.0,0.00013897,2]
[368688340,1751298635292,-490.0,0.00013897,2]
[368688341,1751298635301,-490.0,0.00013897,2]
[368688342,1751298635311,-490.0,0.00013897,2]
[368688343,1751298635321,-490.0,0.00013897,2]
[368688344,1751298635330,-490.0,0.00013897,2]
[368688345,1751298635340,-500.0,0.00013897,2]
[368688346,1751298635349,-872.27,0.00013897,2]
[368688347,1751298635359,-490.0,0.00013897,2]
[368688348,1751298635368,-490.0,0.00013897,2]
[368688349,1751298635378,-490.0,0.00013897,2]
[368688350,1751298635389,-490.0,0.00013897,2]
[368688351,1751298635402,-2335.91,0.00013897,2]
[368688352,1751298635412,-490.0,0.00013897,2]
[368688353,1751298635422,-490.0,0.00013897,2]
[368688354,1751298635432,-490.0,0.00013897,2]
[368688355,1751298635442,-4641.31,0.00013897,2]
[368688356,1751298635452,-209.42892467,0.00013897,2]
[368688357,1751298635463,-490.0,0.00013897,2]
[368688358,1751298635474,-490.0,0.00013897,2]
[368688359,1751298635484,-1472.4,0.00013897,2]
[368688360,1751298635494,-613.45,0.00013897,2]
[368688361,1751298635504,-444.02056308,0.00013898,2]
[368688362,1751298635514,-500.0,0.00013899,2]
[368688363,1751298635524,-500.0,0.00013899,2]
[368688364,1751298635533,-500.0,0.00013899,2]
[368688365,1751298635543,-500.0,0.00013899,2]
[368688366,1751298635553,-446.56281749,0.00013899,2]
[368688367,1751298635563,-500.0,0.00013899,2]
[368688368,1751298635576,-550.15549232,0.00013899,2]
[368688369,1751298635587,-500.0,0.00013899,2]
[368688370,1751298635598,-352.82315975,0.00013899,2]
[368688371,1751298635608,-500.0,0.00013899,2]
[368688372,1751298635619,-500.0,0.00013899,2]
[368688373,1751298635630,-500.0,0.00013899,2]
[368688374,1751298635640,-614.63325283,0.00013899,2]
[368688375,1751298635651,-1575.7704,0.000139,2]
[368688376,1751298635661,-251.20127539,0.000139,2]
[368688377,1751298635670,-444.02056308,0.000139,2]
[368688378,1751298635680,-465.6,0.000139,2]
[368688379,1751298635691,-355.6,0.000139,2]
[368688380,1751298635702,-3270.74801464,0.000139,2]
[368688381,1751298635712,-38112.5749541,0.000139,2]
[368688382,1751298635889,-111026.28232048,0.000139,2]
[368688383,1751298635898,-186.48232926,0.000139,2]
[368688384,1751298635908,-150.0,0.00013905,2]
[368688385,1751298635919,-383.0,0.00013907,2]
[368688386,1751298635928,-306.0,0.00013911,2]
[368688387,1751298635938,-150.0,0.00013912,2]
[368688388,1751298635948,-462.80768515,0.00013913,2]
[368688389,1751298635958,-166.15847903,0.00013918,2]
[368688390,1751298635968,-150.0,0.0001392,2]
[368688391,1751298635979,-150.0,0.00013921,2]
[368688392,1751298635988,-150.0,0.00013931,2]
[368688393,1751298635999,-150.0,0.00013945,2]
[368688394,1751298636009,-835.8297818,0.00013947,2]
[368688395,1751298636019,-720.0,0.00013948,2]
[368688396,1751298636029,-256.83720413,0.00013951,2]
[368688397,1751298636039,-150.0,0.00013953,2]
[368688398,1751298636048,-921.95,0.00013961,2]
[368688399,1751298636058,-150.0,0.00013966,2]
[368688400,1751298636068,-490.0,0.00013967,2]
[368688401,1751298636078,-490.0,0.00013967,2]
[368688402,1751298636088,-751.8,0.00013967,2]
[368688403,1751298636097,-568.66,0.00013967,2]
[368688404,1751298636107,-1154.16,0.00013967,2]
[368688405,1751298636117,-498.67,0.00013967,2]
[368688406,1751298636126,-6545.51258804,0.00013968,2]
[368688407,1751298636136,-200.12634,0.0001397,2]
[368688408,1751298636147,-598.29,0.00013971,2]
[368688409,1751298636157,-490.0,0.00013971,2]
[368688410,1751298636168,-490.0,0.00013971,2]
[368688411,1751298636178,-1210.98,0.00013971,2]
[368688412,1751298636187,-490.0,0.00013971,2]
[368688413,1751298636197,-490.0,0.00013971,2]
[368688414,1751298636206,-490.0,0.00013971,2]
[368688415,1751298636216,-490.0,0.00013971,2]
[368688416,1751298636225,-750.47,0.00013971,2]
[368688417,1751298636235,-380.87831095,0.00013971,2]
[368688418,1751298636245,-490.0,0.00013971,2]
[368688419,1751298636255,-490.0,0.00013971,2]
[368688420,1751298636265,-436.02739256,0.00013971,2]
[368688421,1751298636274,-490.0,0.00013971,2]
[368688422,1751298636284,-1145.03,0.00013971,2]
[368688423,1751298636294,-490.0,0.00013971,2]
[368688424,1751298636304,-490.0,0.00013971,2]
[368688425,1751298636314,-490.0,0.00013971,2]
[368688426,1751298636324,-490.0,0.00013971,2]
[368688427,1751298636334,-574.68,0.00013971,2]
[368688428,1751298636344,-1167.02,0.00013971,2]
[368688429,1751298636353,-804.6,0.00013971,2]
[368688430,1751298636363,-1234.5,0.00013971,2]
[368688431,1751298636372,-490.0,0.00013971,2]
[368688432,1751298636382,-1104.26,0.00013971,2]
[368688433,1751298636391,-874.15,0.00013971,2]
[368688434,1751298636401,-490.0,0.00013971,2]
[368688435,1751298636412,-490.0,0.00013971,2]
[368688436,1751298636421,-2669.0,0.00013971,2]
[368688437,1751298636431,-588.96,0.00013971,2]
[368688438,1751298636440,-1357.05,0.00013971,2]
[368688439,1751298636450,-867.79,0.00013971,2]
[368688440,1751298636753,-490.0,0.00013971,2]
[368688441,1751298636790,-1017.14,0.00013971,2]
[368688442,1751298636801,-939.95,0.00013971,2]
[368688443,1751298636811,-490.0,0.00013971,2]
[368688444,1751298636820,-595.98,0.00013971,2]
[368688445,1751298636830,-1265.61,0.00013971,2]
[368688446,1751298636840,-490.0,0.00013971,2]
[368688447,1751298636850,-492.12,0.00013971,2]
[368688448,1751298636860,-955.45,0.00013971,2]
[368688449,1751298636869,-881.51,0.00013971,2]